{"text_format":"3","workbook":"xlsx","n_sheets":2,"sheets":["ZAČÁTEK","NÁSTROJ PRO ROZPOČET"],"not_rendered":{"defined_names":2},"read":"whole","date_system":"1900"}

{"sheet":"ZAČÁTEK","index":0,"n_rows":7,"n_cols":2,"rows_kept":7}
[null,"INFORMACE O TÉTO ŠABLONĚ"]
[null,"Pomocí tohoto Nástroj pro rozpočet na web můžete sledovat počáteční investice do webu, jeho příspěvky a související náklady."]
[null,"Vyplňte název společnosti a datum."]
[null,"Po zadání podrobností do tabulek se automaticky vypočítají celkem součty a metriky pro vyhodnocení."]
[null,"Poznámka:  "]
[null,"Další pokyny jsou k dispozici ve sloupci A na listu s NÁSTROJ PRO ROZPOČET. Příslušný text je záměrně skrytý. Pokud ho chcete odebrat, vyberte sloupec A a stiskněte klávesu DELETE. Pokud ho chcete zobrazit, vyberte sloupec A a změňte barvu písma."]
[null,"Další informace o tabulkách na listu si zobrazíte tak, že v tabulce stisknete klávesu SHIFT a potom F10, vyberete možnost TABULKA a pak vyberete ALTERNATIVNÍ TEXT."]

{"sheet":"NÁSTROJ PRO ROZPOČET","index":1,"n_rows":43,"n_cols":6,"rows_kept":43,"merged":[[14,1,14,5],[22,1,22,5],[30,1,30,5],[38,1,38,5]]}
["Na tomto listu můžete vytvořit rozpočet pro web. V buňkách v tomto sloupci jsou užitečné pokyny k tomu, jak tento list používat. Začněte stisknutím šipky dolů."]
["Do buňky napravo zadejte název společnosti.","Název společnosti"]
["V buňce napravo je název tohoto listu.","Nástroj pro rozpočet na web"]
["Do buňky vpravo zadejte datum.","Datum"]
["V buňce napravo je k dispozici tip.","Šedé buňky obsahují výpočty, do kterých byste neměli zasahovat."]
["Zadejte podrobnosti do tabulky Sazba, která začíná v buňce napravo. Další pokyny najdete v buňce A10.","Data o společnosti","Sazba"]
[null,"Požadované výnosové procento",{"v":0.1,"d":"10%"}]
[null,"Sazba daně",{"v":0.3,"d":"30%"}]
[]
["Zadejte podrobnosti do tabulky počáteční investice, která začíná v buňce napravo. Další pokyny najdete v buňce A16.","Počáteční investice do webu","ROK","1","2","3"]
[null,"Hardware (např. servery)",{"v":25000,"d":"25,000.00 Kč"}]
[null,"Software (např. software pro katalog e-obchodu)",{"v":15000,"d":"15,000.00 Kč"}]
[null,"Vývoj (např. externě zadaný návrh a vývoj webu)",{"v":150000,"d":"150,000.00 Kč"}]
[null,"Celkové počáteční investice",{"$f":"SUBTOTAL(109,PočátečníInvestice[ROK])","v":{"v":190000,"d":"190,000.00 Kč"}}]
[]
["Zadejte podrobnosti do tabulky přínosů, která začíná v buňce napravo. Další pokyny najdete v buňce A24.","Přínosy webu","ROK","1","2","3"]
[null,"Přímý prodej",null,{"v":15000,"d":"15,000.00 Kč"},{"v":50000,"d":"50,000.00 Kč"},{"v":75000,"d":"75,000.00 Kč"}]
[null,"Nárůst prodeje díky lepší propagaci a efektivitě prodejců",null,{"v":25000,"d":"25,000.00 Kč"},{"v":25000,"d":"25,000.00 Kč"},{"v":25000,"d":"25,000.00 Kč"}]
[null,"Nárůst prodeje díky vyššímu zapojení partnerů",null,{"v":25000,"d":"25,000.00 Kč"},{"v":25000,"d":"25,000.00 Kč"},{"v":25000,"d":"25,000.00 Kč"}]
[null,"Nižší cestovní výdaje",null,{"v":25000,"d":"25,000.00 Kč"},{"v":25000,"d":"25,000.00 Kč"},{"v":25000,"d":"25,000.00 Kč"}]
[null,"Nižší náklady na služby zákazníkům",null,{"v":50000,"d":"50,000.00 Kč"},{"v":50000,"d":"50,000.00 Kč"},{"v":50000,"d":"50,000.00 Kč"}]
[null,"Přínosy celkem",null,{"$f":"SUBTOTAL(109,Příspěvky[1])","v":{"v":140000,"d":"140,000.00 Kč"}},{"$f":"SUBTOTAL(109,Příspěvky[2])","v":{"v":175000,"d":"175,000.00 Kč"}},{"$f":"SUBTOTAL(109,Příspěvky[3])","v":{"v":200000,"d":"200,000.00 Kč"}}]
[]
["Zadejte podrobnosti do tabulky náklady, která začíná v buňce napravo. V buňkách se vzorci se hodnoty počítají automaticky. Další pokyn je v buňce A32.","Náklady (bez počátečních kapitálových investic)","ROK","1","2","3"]
[null,"Náklady na prodej",null,{"v":7500,"d":"7,500.00 Kč"},{"v":25000,"d":"25,000.00 Kč"},{"v":37500,"d":"37,500.00 Kč"}]
[null,"Údržba",null,{"v":15000,"d":"15,000.00 Kč"},{"v":15000,"d":"15,000.00 Kč"},{"v":15000,"d":"15,000.00 Kč"}]
[null,"Řízení projektů, zákaznická podpora",null,{"v":35000,"d":"35,000.00 Kč"},{"v":35000,"d":"35,000.00 Kč"},{"v":35000,"d":"35,000.00 Kč"}]
[null,"Online reklama, registrace na vyhledávacích webech",null,{"v":10000,"d":"10,000.00 Kč"},{"v":10000,"d":"10,000.00 Kč"},{"v":10000,"d":"10,000.00 Kč"}]
[null,"Odpisy kapitálových výdajů (výpočet vycházející z tříletého období)",null,{"$f":"PočátečníInvestice[[#Totals],[ROK]]/3","v":{"v":63333.333333333336,"d":"63,333.33 Kč"}},{"$f":"PočátečníInvestice[[#Totals],[ROK]]/3","v":{"v":63333.333333333336,"d":"63,333.33 Kč"}},{"$f":"PočátečníInvestice[[#Totals],[ROK]]/3","v":{"v":63333.333333333336,"d":"63,333.33 Kč"}}]
[null,"Celkové náklady",null,{"$f":"SUBTOTAL(109,Náklady[1])","v":{"v":130833.33333333334,"d":"130,833.33 Kč"}},{"$f":"SUBTOTAL(109,Náklady[2])","v":{"v":148333.33333333334,"d":"148,333.33 Kč"}},{"$f":"SUBTOTAL(109,Náklady[3])","v":{"v":160833.33333333334,"d":"160,833.33 Kč"}}]
[]
["V tabulce celkem hodnot, která začíná v buňce napravo, se hodnoty počítají automaticky. Další pokyn je v buňce A40.","Celkem","ROK","1","2","3"]
[null,"Čisté přínosy (náklady)",null,{"$f":"Příspěvky[[#Totals],[1]]-Náklady[[#Totals],[1]]","v":{"v":9166.666666666657,"d":"9,166.67 Kč"}},{"$f":"Příspěvky[[#Totals],[2]]-Náklady[[#Totals],[2]]","v":{"v":26666.666666666657,"d":"26,666.67 Kč"}},{"$f":"Příspěvky[[#Totals],[3]]-Náklady[[#Totals],[3]]","v":{"v":39166.66666666666,"d":"39,166.67 Kč"}}]
[null,"Daň",null,{"$f":"D33*SazbaDaně","v":{"v":2749.999999999997,"d":"2,750.00 Kč"}},{"$f":"E33*SazbaDaně","v":{"v":7999.999999999996,"d":"8,000.00 Kč"}},{"$f":"F33*SazbaDaně","v":{"v":11749.999999999996,"d":"11,750.00 Kč"}}]
[null,"Hodnota po zdanění",null,{"$f":"D33-D34","v":{"v":6416.666666666661,"d":"6,416.67 Kč"}},{"v":18666.66666666666,"d":"18,666.67 Kč"},{"v":27416.66666666666,"d":"27,416.67 Kč"}]
[null,"Znovu zaúčtované odpisy",null,{"$f":"D29","v":{"v":63333.333333333336,"d":"63,333.33 Kč"}},{"$f":"E29","v":{"v":63333.333333333336,"d":"63,333.33 Kč"}},{"$f":"F29","v":{"v":63333.333333333336,"d":"63,333.33 Kč"}}]
[null,"Finanční tok",{"$f":"-PočátečníInvestice[[#Totals],[ROK]]","v":{"v":-190000,"d":"-190,000.00 Kč"}},{"$f":"D35+D36","v":{"v":69750,"d":"69,750.00 Kč"}},{"v":82000,"d":"82,000.00 Kč"},{"v":90750,"d":"90,750.00 Kč"}]
[null,"Kumulativní finanční tok",{"$f":"C37","v":{"v":-190000,"d":"-190,000.00 Kč"}},{"$f":"C38+D37","v":{"v":-120250,"d":"-120,250.00 Kč"}},{"v":-38250,"d":"-38,250.00 Kč"},{"v":52500,"d":"52,500.00 Kč"}]
[]
["V tabulce metriky pro vyhodnocení, která začíná v buňce napravo, se automaticky počítají metriky pro vyhodnocení.","Metriky pro vyhodnocení","Hodnoty"]
[null,"Čistá současná hodnota (NPV)",{"$f":"C37+(NPV(ROR,D37:F37))","v":{"v":9359.504132231377,"d":"9,359.50 Kč"}}]
[null,"Vnitřní výnosové procento (IRR)",{"$f":"IRR(C37:F37)","v":{"v":0.12655165144706393,"d":"12.66%"}}]
[null,"Doba návratnosti (roky)",{"$f":"IF(F38<=0,\"Překračuje 3 roky\",IF(E38<=0,(F37-F38)/F37+2,IF(D38<=0,(E37-E38)/E37+1,IF(C38<=0,(D37-D38)/D37,\"-\"))))","v":{"v":2.4214876033057853,"d":"2.42"}}]